Cogmind - Beta 10.2 @@@ ROGUE MODE // 2021.06.18 @ 20:29:08 Player: the cat Result: Destroyed by Tracker with Linked Autogun Performance ------------- Evolutions (7) 3500 Regions Visited (29) 5800 Robots Destroyed (188) 940 Value Destroyed (5746) 5746 Prototype IDs (49) 980 Alien Tech Used (2) 400 Bonus (4415) 4415 TOTAL SCORE: 21781 Bonus ------- High Alert Combat Kills 474 Follower Combat Kills 374 Met Data Miner 300 Met Zhirov 300 Found Hidden Lab 3000 Pursued by Intercept 500 Friendly Fire -533 Cogmind --------- Core Integrity 0/1300 Matter 297/300 Energy 98/100 System Corruption 9% Temperature Cool (0) Movement Core (50) Location -3/Research Parts ------- > --- POWER (1) -------- (None) > --- PROPULSION (7) --- (None) > --- UTILITY (11) ----- Advanced Signal Interpreter Advanced Hacking Suite Advanced System Shield > --- WEAPON (2) ------- (None) > --- INVENTORY (4) ---- Experimental Sensor Array EM Dispersion Field Advanced Force Field Mini Smartbomb Launcher Peak State ------------ > --- POWER ------------ Light Antimatter Reactor > --- PROPULSION ------- Cooled Nuclear Pulse Thruster Cooled Field Propulsion Drive Field Propulsion Array Q-thruster Impulse Thruster Array > --- UTILITY ---------- Large Storage Unit Large Storage Unit Advanced Energy Well Experimental Sensor Array Advanced Signal Interpreter Improved Melee Analysis Suite Advanced Reaction Control System Experimental Propulsion Shielding Advanced Hacking Suite Experimental Hacking Suite Advanced System Shield > --- WEAPON ----------- Plasma Lance Plasma Lance > --- INVENTORY -------- Improved Cesium-ion Thruster Field Propulsion Array Diametric Drive Advanced Sensor Array Advanced ECM Suite EM Dispersion Field Advanced Force Field System Restoration Module Enhanced Nova Cannon Mini Smartbomb Launcher [Rating: 141] Favorites ----------- Power Micro Fission Core Engine Ion Engine Power Core Micro Fission Core Reactor Mini Fusion Reactor Propulsion Impulse Thruster Array Treads Light Treads Wheel Compact Wheel Flight Unit Impulse Thruster Array Utility Improved Hacking Suite Device Experimental Sensor Array Storage Large Storage Unit Processor Advanced Signal Interpreter Hackware Improved Hacking Suite Protection Experimental Propulsion Shielding Weapon Improved Assault Rifle Energy Gun Improved Medium Laser Energy Cannon Neutron Cannon Ballistic Gun Improved Assault Rifle Ballistic Cannon Hypervelocity Mass Driver Launcher Mini Smartbomb Launcher Special Weapon Remote Datajack Impact Weapon Flail Slashing Weapon Katana Piercing Weapon Enhanced Force Lance Special Melee Weapon Advanced Datajack Build | -11 -10 -9 -9 -9 -8 -8 -7 -7 -7 -6 -6 -6 -6 -6 -6 -5 -5 -5 -5 -5 -5 -5 -4 -4 -4 -4 -4 -4 -3 ------- Run | Scr Mat Mat Min Exi Min Mat Fac Was Fac Fac Was Fac Low Low Dat Pro Fac Was Fac Upp Upp Zhi Pro Fac Was Fac Arm Lab Res Slots Evolved 14 | . . 2 . . . 2 2 . . 2 . . . . . . 2 . . . . . . 2 . . . . 2 Power . | . . . . . . . . . . . . . . . . . . . . . . . . . . . . . . Propulsion 5 | . . 1 . . . . . . . . . . . . . . 1 . . . . . . 1 . . . . 2 Utility 9 | . . 1 . . . 2 2 . . 2 . . . . . . 1 . . . . . . 1 . . . . . Weapon . | . . . . . . . . . . . . . . . . . . . . . . . . . . . . . . Parts Attached 373 | 6 15 18 . . 1 36 21 . 14 21 . 14 . 12 1 3 24 3 13 6 2 7 1 49 1 77 9 3 16 Power 23 | 1 3 2 . . . 2 2 . 1 1 . 2 . . . . . . 1 . . . . 2 . 5 . . 1 Engine 4 | 1 2 1 . . . . . . . . . . . . . . . . . . . . . . . . . . . Core 12 | . 1 1 . . . 2 2 . 1 1 . 2 . . . . . . 1 . . . . 1 . . . . . Reactor 7 | . . . . . . . . . . . . . . . . . . . . . . . . 1 . 5 . . 1 Propulsion 55 | 2 4 6 . . 1 17 4 . 3 2 . . . . . . 4 . . . . . . 3 . 2 . . 7 Treads 18 | 1 1 5 . . 1 10 . . . . . . . . . . . . . . . . . . . . . . . Leg . | . . . . . . . . . . . . . . . . . . . . . . . . . . . . . . Wheel 10 | 1 3 1 . . . 5 . . . . . . . . . . . . . . . . . . . . . . . Hover . | . . . . . . . . . . . . . . . . . . . . . . . . . . . . . . Flight 27 | . . . . . . 2 4 . 3 2 . . . . . . 4 . . . . . . 3 . 2 . . 7 Utility 199 | 1 4 3 . . . 6 9 . 9 12 . 5 . 9 . 1 13 2 7 3 1 6 1 30 . 60 9 2 6 Device 92 | . . . . . . . 2 . 3 5 . 5 . 5 . . 5 . 2 . 1 1 1 12 . 39 7 1 3 Storage 27 | 1 4 1 . . . . 1 . 1 1 . . . . . . 1 1 2 . . 1 . 4 . 7 1 . 1 Processor 9 | . . . . . . 1 2 . . 1 . . . . . 1 . . . 1 . 1 . . . . 1 1 . Hackware 25 | . . . . . . 1 4 . 5 2 . . . 1 . . 3 . . . . . . 4 . 4 . . 1 Protection 46 | . . 2 . . . 4 . . . 3 . . . 3 . . 4 1 3 2 . 3 . 10 . 10 . . 1 Artifact . | . . . . . . . . . . . . . . . . . . . . . . . . . . . . . . Weapon 96 | 2 4 7 . . . 11 6 . 1 6 . 7 . 3 1 2 7 1 5 3 1 1 . 14 1 10 . 1 2 Energy Gun 4 | 1 . 2 . . . 1 . . . . . . . . . . . . . . . . . . . . . . . Energy Cannon 26 | . . 1 . . . 1 2 . 1 1 . 2 . 2 1 . 3 . 3 2 . . . 4 . 2 . . 1 Ballistic Gun 27 | 1 4 4 . . . 8 . . . . . . . 1 . 1 . . . 1 . 1 . 4 . 2 . . . Ballistic Cannon 1 | . . . . . . . . . . . . . . . . . . . . . . . . . . 1 . . . Launcher 7 | . . . . . . 1 1 . . . . 2 . . . 1 . . . . . . . 2 . . . . . Special Weapon 2 | . . . . . . . 1 . . 1 . . . . . . . . . . . . . . . . . . . Impact Weapon 5 | . . . . . . . . . . . . . . . . . 4 . 1 . . . . . . . . . . Slashing Weapon 6 | . . . . . . . 2 . . 2 . . . . . . . . . . . . . 1 . 1 . . . Piercing Weapon 17 | . . . . . . . . . . 2 . 3 . . . . . 1 1 . 1 . . 2 1 4 . 1 1 Special Melee Weapon 1 | . . . . . . . . . . . . . . . . . . . . . . . . 1 . . . . . Unidentified Prototypes 17 | . . 4 . . . 2 2 . 1 . . 1 . . . . . . 2 . . 3 . . . 1 . . 1 Parts Lost 63 | . 7 3 . . 1 9 1 . 1 2 . . . 6 1 . . . . . . . 1 1 . 11 1 2 16 Power 7 | . 3 . . . . 1 . . . . . . . . . . . . . . . . . . . 1 1 . 1 Propulsion 16 | . 2 1 . . 1 3 1 . 1 . . . . . . . . . . . . . . . . 1 . . 6 Utility 25 | . . 1 . . . 2 . . . 1 . . . 4 1 . . . . . . . 1 1 . 6 . 2 6 Weapon 15 | . 2 1 . . . 3 . . . 1 . . . 2 . . . . . . . . . . . 3 . . 3 Highest Loss Streak 16 | . 4 2 . . 1 6 1 . 1 1 . . . 6 1 . . . . . . . 1 1 . 2 1 2 16 Average Slot Usage (%) 90 | . 94 98 100 100 100 96 91 92 91 87 93 92 93 84 86 84 87 89 89 88 88 87 86 88 89 87 83 82 71 Core 5 | . 6 3 11 11 11 8 6 7 7 6 6 6 6 6 6 6 5 5 5 5 5 5 5 3 . . . . . Treads 5 | . 10 21 22 22 22 17 . . . . . . . . . . . . . . . . . . . . . . . Wheel 3 | . 14 11 11 11 11 8 . . . . . . . . . . . . . . . . . . . . . . . Flight 11 | . . . . . . . 22 23 23 14 13 13 13 13 13 13 17 17 17 17 17 17 17 15 15 15 15 15 17 Device 5 | . . . . . . . 6 7 6 5 6 5 6 9 13 13 7 2 4 5 5 5 6 9 10 8 4 1 4 Storage 16 | . 27 28 33 33 33 27 7 7 7 8 13 13 13 13 13 13 11 11 11 11 11 11 11 10 10 12 15 15 13 Processor 4 | . . . . . . 2 6 7 7 6 6 6 6 6 6 11 6 5 5 5 5 5 5 5 5 5 5 10 8 Hackware 18 | . . . . . . 2 29 30 30 34 33 33 33 13 13 13 20 29 29 29 29 29 25 28 26 24 26 23 13 Protection 3 | . . 4 . . . 10 . . . 2 . . . 12 13 6 9 5 4 5 5 4 5 2 5 4 5 5 3 Ballistic Gun 6 | . 24 17 22 22 22 17 . . . . . . . 5 4 5 . . . . . . . . . . . . . Piercing Weapon 3 | . . . . . . . . . . 5 13 12 13 1 . . . 3 4 3 5 5 5 4 4 6 5 9 4 Naked Turns . | . . . . . . . . . . . . . . . . . . . . . . . . . . . . . . Heaviest Build 113 | 13 75 93 93 93 93 113 16 16 16 28 28 32 28 39 34 33 42 41 41 43 39 41 42 63 61 63 49 44 53 Greatest Support 71 | 16 26 20 16 16 16 40 18 18 22 35 35 35 35 35 35 35 44 44 44 44 44 44 44 63 63 63 59 59 71 Greatest Overweight (x) 11 | . 4 5 5 5 5 11 . . 1 . . . . 1 . . . . . . . . . . . 1 . . . Average Overweight (x) . | . 2 4 5 5 5 7 . . . . . . . . . . . . . . . . . . . . . . . Largest Inventory Capacity 30 | 6 20 26 26 26 26 26 30 8 8 12 12 12 12 12 12 12 14 14 14 14 14 14 14 16 16 16 16 16 16 Average Capacity 16 | 5 16 23 26 26 26 26 8 8 8 9 12 12 12 12 12 12 12 13 14 14 14 14 14 15 16 16 16 16 15 Most Carried 26 | 3 17 26 26 26 26 26 25 8 8 12 12 12 12 12 9 9 14 14 14 14 14 14 14 16 16 16 16 16 15 Average Carried 15 | 2 11 21 25 26 25 25 7 8 7 8 12 11 12 9 8 8 11 12 12 13 14 13 14 13 16 15 15 13 12 Final Capacity 26 | 6 20 26 26 26 26 26 8 8 8 12 12 12 12 12 12 12 14 14 14 14 14 14 14 16 16 16 16 16 4 Final Carried 26 | 3 17 26 26 26 26 25 8 8 8 12 12 12 12 9 9 9 14 11 14 14 14 14 14 16 16 16 16 13 4 Class Distribution -------------------- 31% | Wizard-Sprinter 24% | Hauler-Mutant 17% | Hacker-Sprinter 12% | Wizard-Mutant 5% | Machinist-Scout 5% | Mutant Dominant Class ---------------- Mutant | -10/Materials Hauler-Mutant | -9/Materials Hauler-Mutant | -9/Mines Hauler-Mutant | -9/Exiles Hauler-Mutant | -8/Mines Hauler-Mutant | -8/Materials Hacker-Sprinter | -7/Factory Hacker-Sprinter | -7/Waste Hacker-Sprinter | -7/Factory Wizard-Mutant | -6/Factory Wizard-Mutant | -6/Waste Wizard-Mutant | -6/Factory Wizard-Mutant | -6/Lower Caves Machinist-Scout | -6/Lower Caves Machinist-Scout | -6/Data Miner Machinist-Scout | -5/Proximity Caves Hacker-Sprinter | -5/Factory Wizard-Sprinter | -5/Waste Wizard-Sprinter | -5/Factory Wizard-Sprinter | -5/Upper Caves Wizard-Sprinter | -5/Upper Caves Wizard-Sprinter | -5/Zhirov Hacker-Sprinter | -4/Proximity Caves Wizard-Sprinter | -4/Factory Wizard-Sprinter | -4/Waste Wizard-Sprinter | -4/Factory Wizard-Sprinter | -4/Armory Wizard-Mutant | -4/Lab Hacker-Sprinter | -3/Research Resources | -11 -10 -9 -9 -9 -8 -8 -7 -7 -7 -6 -6 -6 -6 -6 -6 -5 -5 -5 -5 -5 -5 -5 -4 -4 -4 -4 -4 -4 -3 ----------- Run | Scr Mat Mat Min Exi Min Mat Fac Was Fac Fac Was Fac Low Low Dat Pro Fac Was Fac Upp Upp Zhi Pro Fac Was Fac Arm Lab Res Matter Collected 6294 | 194 463 911 83 . 110 1352 185 . 101 356 . 110 . 113 . 33 204 . 238 36 14 . 134 649 40 762 30 . 176 Remotely . | . . . . . . . . . . . . . . . . . . . . . . . . . . . . . . Salvage Created 8323 | . 597 1331 42 . 144 2186 119 . 83 573 . 341 . 30 . . 161 . 350 . . . . 795 . 1358 30 . 183 Parts 446 | . 36 90 9 . 7 113 12 . 11 24 . 12 . 3 . . 7 . 16 . . . . 36 . 56 3 . 11 Haulers Intercepted 22 | . 2 6 . . . 5 1 . . 1 . 2 . . . . . . 1 . . . . 2 . 2 . . . Recyclers Shooed 5 | . 1 1 . . . 2 . . . 1 . . . . . . . . . . . . . . . . . . . Parts Field Recycled . | . . . . . . . . . . . . . . . . . . . . . . . . . . . . . . Retrieved Matter . | . . . . . . . . . . . . . . . . . . . . . . . . . . . . . . Parts Self-Destructed 8 | . . . . . . . . . . . . . . 6 . . . . . . 2 . . . . . . . . Prevented 1 | . . . . . . . . . . . . . . . . . . . . 1 . . . . . . . . . Kills | -11 -10 -9 -9 -9 -8 -8 -7 -7 -7 -6 -6 -6 -6 -6 -6 -5 -5 -5 -5 -5 -5 -5 -4 -4 -4 -4 -4 -4 -3 ------- Run | Scr Mat Mat Min Exi Min Mat Fac Was Fac Fac Was Fac Low Low Dat Pro Fac Was Fac Upp Upp Zhi Pro Fac Was Fac Arm Lab Res Combat Hostiles Destroyed 105 | . 11 26 3 . 3 40 . . . 2 . . . 1 . . 3 . . . . . . 4 . 12 . . . Melee 14 | . . . . . . . . . . 2 . . . 1 . . . . . . . . . 1 . 10 . . . Guns 80 | . 11 26 3 . 3 37 . . . . . . . . . . . . . . . . . . . . . . . Cannons 7 | . . . . . . . . . . . . . . . . . 3 . . . . . . 2 . 2 . . . AOE 4 | . . . . . . 3 . . . . . . . . . . . . . . . . . 1 . . . . . Classes Destroyed 13 | . 4 3 . . 2 2 1 . . 1 . . . . . . . . . . . . . . . . . . . Worker 11 | . 1 3 . . . 2 . . 1 2 . . . . . . . . . . . . . 2 . . . . . Builder 3 | . . . . . . . 1 . . . . . . . . . . . . . . . . 2 . . . . . Tunneler 1 | . . . . . 1 . . . . . . . . . . . . . . . . . . . . . . . . Hauler 22 | . 2 6 . . . 5 1 . . 1 . 2 . . . . . . 1 . . . . 2 . 2 . . . Recycler 9 | . . . . . . 1 . . . 2 . . . . . . . . 1 . . . . 2 . 2 . . 1 Operator 15 | . 2 4 . . . 2 . . 1 . . 2 . . . . . . . . . . . 2 . 2 . . . Watcher 22 | . . 1 . . . 1 2 . 2 2 . 2 . . . . 1 . 3 . . . . 1 . 4 1 . 2 Swarmer 22 | . . 10 3 . . 7 . . . . . . . 1 . . . . . . . . . . . 1 . . . Grunt 46 | . 11 10 . . 2 23 . . . . . . . . . . . . . . . . . . . . . . . Duelist 2 | . . . . . 1 1 . . . . . . . . . . . . . . . . . . . . . . . Protector 1 | . . . . . . 1 . . . . . . . . . . . . . . . . . . . . . . . Sentry 15 | . . 6 . . . 8 . . . . . . . . . . . . . . . . . 1 . . . . . Programmer 19 | . . . . . . . . . . 2 . . . . . . 3 . . . . . . 3 . 11 . . . Best Kill Streak 6 | . 3 5 3 . 2 6 1 . 1 2 . 1 . 1 . . 2 . 1 . . . . 4 . 3 1 . 2 Combat Bots Only 5 | . 3 5 3 . 2 5 . . . 1 . . . 1 . . 2 . . . . . . 1 . 2 . . . Max Kills in Single Turn 3 | . 1 2 1 . 1 3 1 . 1 1 . 1 . 1 . . 1 . 1 . . . . 2 . 1 1 . 1 Gunslinging 1 | . . 1 . . . 1 . . . . . . . . . . . . . . . . . . . . . . . Exploded 3 | . . . . . . 3 . . . . . . . . . . . . . . . . . 1 . . . . . Melee 1 | . . . . . . . . . . 1 . . . 1 . . . . . . . . . 1 . 1 . . . Uniques/NPCs Destroyed . | . . . . . . . . . . . . . . . . . . . . . . . . . . . . . . Combat | -11 -10 -9 -9 -9 -8 -8 -7 -7 -7 -6 -6 -6 -6 -6 -6 -5 -5 -5 -5 -5 -5 -5 -4 -4 -4 -4 -4 -4 -3 -------- Run | Scr Mat Mat Min Exi Min Mat Fac Was Fac Fac Was Fac Low Low Dat Pro Fac Was Fac Upp Upp Zhi Pro Fac Was Fac Arm Lab Res Damage Taken 12768 | . 823 947 52 . 693 2448 119 . 22 294 . 39 . 742 140 2 402 42 250 16 . . 70 662 . 2035 320 43 2607 Core 3115 | . 124 149 . . 146 309 . . 22 16 . . . 230 . 1 96 . 74 . . . . 103 . 378 134 24 1309 Absorbed by Shields 12 | . . . . . . . . . . . . . . . . . . . . . . . . 12 . . . . . Core Remaining (%) 63 | 100 50 . . . 26 43 . . 96 . . . . . . 70 . . . . . . 83 . . . . 38 . Volleys Fired 477 | . 68 88 6 . 22 166 4 . 6 9 . 4 . 5 1 2 13 . 2 10 . . . 49 . 19 . . 3 Largest 2 | . 2 2 2 . 2 2 1 . 1 1 . 1 . 1 1 1 1 . 1 1 . . . 1 . 1 . . 1 Hottest 120 | . 60 79 46 . 46 113 30 . 30 30 . 30 . 30 30 33 90 . 90 90 . . . 90 . 90 . . 120 Shots Fired 819 | . 129 176 12 . 44 331 4 . 6 9 . 4 . 5 1 2 13 . 2 10 . . . 49 . 19 . . 3 Gun 708 | . 129 176 12 . 44 329 . . . . . . . 1 . . . . . . . . . 14 . 3 . . . Cannon 97 | . . . . . . 1 3 . 6 7 . 4 . 4 1 . 13 . 2 10 . . . 27 . 16 . . 3 Launcher 11 | . . . . . . 1 . . . . . . . . . 2 . . . . . . . 8 . . . . . Special 3 | . . . . . . . 1 . . 2 . . . . . . . . . . . . . . . . . . . Kinetic 639 | . 98 137 12 . 44 327 . . . . . . . 1 . . . . . . . . . 14 . 6 . . . Thermal 133 | . . 39 . . . 1 3 . 6 7 . 4 . 4 1 . 13 . 2 10 . . . 27 . 13 . . 3 Explosive 11 | . . . . . . 1 . . . . . . . . . 2 . . . . . . . 8 . . . . . Electromagnetic 33 | . 31 . . . . 2 . . . . . . . . . . . . . . . . . . . . . . . Robot Hit Streak 28 | . 14 23 5 . 19 28 3 . 4 1 . . . 2 3 . 8 . . . . . . 12 . 3 . . 3 Robot Miss Streak 7 | . 7 7 2 . 1 3 . . . 2 . . . . . . 1 . . . . . . 2 . 1 . . 1 Penetration Max 1 | . . . . . . 1 . . . . . . . . . . . . . . . . . . . . . . . Secondary Targets 17 | . 2 6 1 . . 8 . . . . . . . . . . . . . . . . . . . . . . . Max Gunslinging Chain 1 | . 1 1 1 . . 1 . . . . . . . . . . . . . . . . . . . . . . . Shots Hit Robots 714 | . 84 120 7 . 39 274 10 . 8 20 . 9 . 3 1 . 10 . 9 . . . . 40 . 58 8 5 9 Core Hits 302 | . 36 60 3 . 11 102 4 . 4 9 . 6 . 1 1 . 3 . 6 . . . . 24 . 26 2 . 4 Critical Hits 27 | . 3 . . . . 9 . . . . . . . . . . 1 . 2 . . . . 5 . 5 1 1 . Critical Kills 12 | . 1 . . . . 5 . . . . . . . . . . . . 2 . . . . 2 . 2 . . . Critical Parts Destroyed 13 | . 2 . . . . 3 . . . . . . . . . . 1 . . . . . . 2 . 3 1 1 . Melee Attacks 808 | . . . . . . . 66 . 70 91 . 102 1 7 . . 45 . 69 1 . . 4 99 . 195 21 7 30 Impact 49 | . . . . . . . . . . . . . . . . . 45 . 4 . . . . . . . . . . Slashing 165 | . . . . . . . 66 . 70 26 . . . . . . . . . . . . . 1 . 2 . . . Piercing 593 | . . . . . . . . . . 65 . 102 1 7 . . . . 65 1 . . 4 97 . 193 21 7 30 Sneak Attacks 39 | . . . . . . . 4 . 1 6 . 6 . . . . . . 3 . . . . 11 . 7 . . 1 Combat Hostiles 1 | . . . . . . . . . . . . . . . . . . . . . . . . . . 1 . . . Follow-up Attacks 8 | . . . . . . . . . . . . 1 . . . . . . . . . . . . . 2 . 2 3 Damage Inflicted 19994 | . 1115 1890 85 . 553 4458 599 . 388 1169 . 751 . 80 28 . 508 . 968 . . . . 2720 . 3518 322 298 544 Guns 7945 | . 1115 1890 85 . 553 4186 . . . . . . . 23 . . . . . . . . . 87 . 6 . . . Cannons 1314 | . . . . . . . . . 28 . . . . . 28 . 473 . . . . . . 423 . 266 . . 96 Explosions 606 | . . . . . . 272 . . . . . . . . . . . . . . . . . 334 . . . . . Melee 10122 | . . . . . . . 599 . 360 1169 . 751 . 57 . . 35 . 968 . . . . 1876 . 3246 322 298 441 Ramming 7 | . . . . . . . . . . . . . . . . . . . . . . . . . . . . . 7 Kinetic 7146 | . 820 1386 85 . 553 4186 . . . . . . . 23 . . . . . . . . . 87 . 6 . . . Thermal 1818 | . . 504 . . . . . . 28 . . . . . 28 . 473 . . . . . . 423 . 266 . . 96 Explosive 606 | . . . . . . 272 . . . . . . . . . . . . . . . . . 334 . . . . . Electromagnetic 295 | . 295 . . . . . . . . . . . . . . . . . . . . . . . . . . . . Impact 35 | . . . . . . . . . . . . . . . . . 35 . . . . . . . . . . . . Slashing 1183 | . . . . . . . 599 . 360 224 . . . . . . . . . . . . . . . . . . . Piercing 8904 | . . . . . . . . . . 945 . 751 . 57 . . . . 968 . . . . 1876 . 3246 322 298 441 Highest Corruption 9 | . 2 . . . . . . 7 8 2 2 2 . . . . 2 2 5 5 5 5 5 3 . 3 3 3 9 Average Corruption 3 | . 2 . . . . . . 7 7 1 2 1 . . . . 1 2 2 5 5 5 5 2 . 2 2 3 5 Corruption Purged 10 | . . . . . . . . . . . . 2 . . . . . . . . . . . 3 . 5 . . . Effects 127 | . 3 . . . . . . . 45 7 . 3 . . . . 1 2 11 8 1 3 2 9 . 24 3 3 2 Message Errors 39 | . 3 . . . . . . . 11 3 . . . . . . . 1 5 2 . . . 1 . 9 2 1 1 Matter Fused 17 | . . . . . . . . . 9 . . . . . . . . . 1 1 1 . 1 2 . 2 . . . Heat Flow Errors 15 | . . . . . . . . . 5 1 . . . . . . 1 1 2 3 . . . 1 . 1 . . . Energy Discharges 17 | . . . . . . . . . 3 2 . 2 . . . . . . 2 1 . 1 . 2 . 2 1 1 . Parts Rejected 1 | . . . . . . . . . . . . . . . . . . . . . . . . . . . . . 1 Data Loss (minor) 20 | . . . . . . . . . 6 1 . 1 . . . . . . . . . 2 1 1 . 8 . . . Data Loss (major) 6 | . . . . . . . . . 6 . . . . . . . . . . . . . . . . . . . . Targeting Errors 12 | . . . . . . . . . 5 . . . . . . . . . 1 1 . . . 2 . 2 . 1 . Overload Shots . | . . . . . . . . . . . . . . . . . . . . . . . . . . . . . . Overflow Damage 1051 | . . . . . . . 9 . 126 84 . 145 . . . . 37 . 185 . . . . 317 . 118 12 . 18 Projectiles 48 | . . . . . . . . . . . . . . . . . 24 . . . . . . 6 . . . . 18 Explosions . | . . . . . . . . . . . . . . . . . . . . . . . . . . . . . . Melee 1003 | . . . . . . . 9 . 126 84 . 145 . . . . 13 . 185 . . . . 311 . 118 12 . . Knockbacks . | . . . . . . . . . . . . . . . . . . . . . . . . . . . . . . Impact . | . . . . . . . . . . . . . . . . . . . . . . . . . . . . . . Kinetic . | . . . . . . . . . . . . . . . . . . . . . . . . . . . . . . Secondary . | . . . . . . . . . . . . . . . . . . . . . . . . . . . . . . Self-Inflicted Damage 6 | . . . . . . . . . . . . . . . . 3 . . . . . . . . . . . . 3 Shots 1 | . . . . . . . . . . . . . . . . 1 . . . . . . . . . . . . . Rammed 2 | . . . . . . . . . . . . . . . . . . . . . . . . . . . . . 2 Targets Rammed 2 | . . . . . . . . . . . . . . . . . . . . . . . . . . . . . 2 Kicked . | . . . . . . . . . . . . . . . . . . . . . . . . . . . . . . Crushed . | . . . . . . . . . . . . . . . . . . . . . . . . . . . . . . Highest Temperature 310 | . 88 204 . . 96 146 7 . 187 243 . . . . 2 . 310 83 225 302 . . . 188 . 263 . . . Average Temperature 58 | . 33 56 . . 57 36 7 . 87 106 . . . . 2 . 117 74 79 124 . . . 65 . 45 . . . Received Heat Transfer 2541 | . 456 240 . . 324 1161 . . . 6 . 18 . . 18 . 18 . 18 . . . 9 36 . 198 18 . 21 Siege Activations . | . . . . . . . . . . . . . . . . . . . . . . . . . . . . . . Robots Corrupted . | . . . . . . . . . . . . . . . . . . . . . . . . . . . . . . Combat Hostiles . | . . . . . . . . . . . . . . . . . . . . . . . . . . . . . . Parts Fried 1 | . . . . . . . . . . . . . . . . . 1 . . . . . . . . . . . . Impact Corruptions 1 | . . . . . . . . . . . . . . . . . 1 . . . . . . . . . . . . Robots Melted . | . . . . . . . . . . . . . . . . . . . . . . . . . . . . . . Combat Hostiles . | . . . . . . . . . . . . . . . . . . . . . . . . . . . . . . Parts Melted . | . . . . . . . . . . . . . . . . . . . . . . . . . . . . . . Heat Transferred 1883 | . . 1110 . . . . . . 37 . . . . . 37 . 250 . . . . . . 225 . 150 . . 74 Parts Sabotaged . | . . . . . . . . . . . . . . . . . . . . . . . . . . . . . . Parts Stolen . | . . . . . . . . . . . . . . . . . . . . . . . . . . . . . . Parts Stripped . | . . . . . . . . . . . . . . . . . . . . . . . . . . . . . . Power Chain Reactions . | . . . . . . . . . . . . . . . . . . . . . . . . . . . . . . Missiles Intercepted . | . . . . . . . . . . . . . . . . . . . . . . . . . . . . . . Alert | -11 -10 -9 -9 -9 -8 -8 -7 -7 -7 -6 -6 -6 -6 -6 -6 -5 -5 -5 -5 -5 -5 -5 -4 -4 -4 -4 -4 -4 -3 ------- Run | Scr Mat Mat Min Exi Min Mat Fac Was Fac Fac Was Fac Low Low Dat Pro Fac Was Fac Upp Upp Zhi Pro Fac Was Fac Arm Lab Res Peak Influence 1149 | . 220 528 277 . 135 745 436 79 325 712 104 459 . . . . 176 121 407 . . . . 461 82 1149 392 . 83 Initial 338 | . . 84 192 . . . 338 64 55 86 89 72 . . . . . 61 84 . . . . 9 42 22 154 . . Average 227 | . 123 321 169 . 58 351 267 70 176 320 93 135 . . . . 57 96 143 . . . . 98 44 424 260 . 21 Maximum Alert Level 4 | . 1 2 1 . . 3 2 . 1 3 . 2 . . . . . . 2 . . . . 2 . 4 1 . . Low Security (%) 59 | 100 75 21 71 . 100 38 29 100 71 45 100 78 . . . . 100 100 90 . . . . 90 100 21 19 . 100 Level 1 21 | . 24 37 28 . . 10 59 . 28 20 . 14 . . . . . . 8 . . . . 9 . 35 80 . . Level 2 15 | . . 40 . . . 44 11 . . 33 . 7 . . . . . . 1 . . . . . . 24 . . . Level 3 3 | . . . . . . 6 . . . . . . . . . . . . . . . . . . . 15 . . . Level 4 . | . . . . . . . . . . . . . . . . . . . . . . . . . . 2 . . . Level 5 . | . . . . . . . . . . . . . . . . . . . . . . . . . . . . . . High Security . | . . . . . . . . . . . . . . . . . . . . . . . . . . . . . . Max Security . | . . . . . . . . . . . . . . . . . . . . . . . . . . . . . . Squads Dispatched 43 | . 3 3 . . . 7 1 . 2 2 . 1 . . . . 2 . 1 . . . . 4 . 12 1 . 4 Investigation 7 | . 1 . . . . . 1 . 1 . . . . . . . . . . . . . . . . 3 . . 1 Extermination 14 | . . . . . . . . . 1 1 . 1 . . . . 2 . . . . . . 3 . 6 . . . Reinforcement 12 | . 2 3 . . . 3 . . . . . . . . . . . . 1 . . . . 1 . 1 1 . . Assault 6 | . . . . . . 3 . . . 1 . . . . . . . . . . . . . . . 2 . . . Garrison 1 | . . . . . . 1 . . . . . . . . . . . . . . . . . . . . . . . Intercept 3 | . . . . . . . . . . . . . . . . . . . . . . . . . . . . . 3 Construction Impeded 2 | . . . . . . 1 . . . . . . . . . . . . . . . . . 1 . . . . . Haulers Reinforced 1 | . . . . . . . . . . . . . . . . . . . . . . . . . . 1 . . . Stealth | -11 -10 -9 -9 -9 -8 -8 -7 -7 -7 -6 -6 -6 -6 -6 -6 -5 -5 -5 -5 -5 -5 -5 -4 -4 -4 -4 -4 -4 -3 --------- Run | Scr Mat Mat Min Exi Min Mat Fac Was Fac Fac Was Fac Low Low Dat Pro Fac Was Fac Upp Upp Zhi Pro Fac Was Fac Arm Lab Res Distress Signals 27 | . 2 7 2 . . 1 3 . 1 1 . 1 . . . . . . . . . . . 6 . 2 1 . . Communications Jammed 32 | . . . . . . . . . . . . . . . . . . . . . . . . 15 . 16 1 . . Distress Signals 32 | . . . . . . . . . . . . . . . . . . . . . . . . 15 . 16 1 . . Times Spotted 485 | . 46 50 4 . 7 80 16 5 15 23 1 14 . 13 4 . 12 6 20 4 . . 1 40 2 88 22 1 11 Peak Tracking Total 15 | . 4 8 3 . 3 10 9 5 3 7 1 6 . 6 4 . 5 6 10 4 . . 1 9 1 15 8 1 7 Tactical Retreats 81 | . 9 2 1 . 3 8 3 . 2 5 . 3 . 4 . . 1 . 3 . . . 1 14 . 16 4 . 2 Traps | -11 -10 -9 -9 -9 -8 -8 -7 -7 -7 -6 -6 -6 -6 -6 -6 -5 -5 -5 -5 -5 -5 -5 -4 -4 -4 -4 -4 -4 -3 ------- Run | Scr Mat Mat Min Exi Min Mat Fac Was Fac Fac Was Fac Low Low Dat Pro Fac Was Fac Upp Upp Zhi Pro Fac Was Fac Arm Lab Res Traps Triggered 21 | . 3 . . . . . 2 . 2 2 . . . . . . 2 . . . . . . 4 . 4 2 . . Indirectly . | . . . . . . . . . . . . . . . . . . . . . . . . . . . . . . Trap Hack Attempts . | . . . . . . . . . . . . . . . . . . . . . . . . . . . . . . Triggered . | . . . . . . . . . . . . . . . . . . . . . . . . . . . . . . Disarmed . | . . . . . . . . . . . . . . . . . . . . . . . . . . . . . . Reprogrammed 4 | . . . . . . . . . . . . . . . . . . . . . . . . 4 . . . . . Reused 1 | . . . . . . . . . . . . . . . . . . . . . . . . 1 . . . . . Traps Extracted . | . . . . . . . . . . . . . . . . . . . . . . . . . . . . . . Installed . | . . . . . . . . . . . . . . . . . . . . . . . . . . . . . . Triggered 4 | . . . . . . . . . . . . . . . . . . . . 1 2 . . 1 . . . . . Machines | -11 -10 -9 -9 -9 -8 -8 -7 -7 -7 -6 -6 -6 -6 -6 -6 -5 -5 -5 -5 -5 -5 -5 -4 -4 -4 -4 -4 -4 -3 ---------- Run | Scr Mat Mat Min Exi Min Mat Fac Was Fac Fac Was Fac Low Low Dat Pro Fac Was Fac Upp Upp Zhi Pro Fac Was Fac Arm Lab Res Machines Disabled 16 | . . 2 . . . 2 . . . 1 . . . . . . . . 1 . . . . 3 . 2 5 . . Max in Single Turn 1 | . . 1 . . . 1 . . . 1 . . . . . . . . 1 . . . . 1 . 1 1 . . Garrison Access 17 | . . . . . . 1 2 . 3 2 . 2 . . . . 3 . 1 . . . . 2 . 1 . . . Machines Sabotaged . | . . . . . . . . . . . . . . . . . . . . . . . . . . . . . . Garrisons Compromised . | . . . . . . . . . . . . . . . . . . . . . . . . . . . . . . Overloaded Fab Kills . | . . . . . . . . . . . . . . . . . . . . . . . . . . . . . . Fab Network Shutdowns 5 | . . . . . . . . . . 1 . 1 . . . . . . 1 . . . . 1 . 1 . . . Hacking | -11 -10 -9 -9 -9 -8 -8 -7 -7 -7 -6 -6 -6 -6 -6 -6 -5 -5 -5 -5 -5 -5 -5 -4 -4 -4 -4 -4 -4 -3 --------- Run | Scr Mat Mat Min Exi Min Mat Fac Was Fac Fac Was Fac Low Low Dat Pro Fac Was Fac Upp Upp Zhi Pro Fac Was Fac Arm Lab Res Machines Accessed 203 | . 4 4 . 1 . 9 18 . 27 17 . 16 . . 4 . 21 . 18 2 . 6 . 24 . 22 6 . 4 Terminals 115 | . 4 4 . . . 8 11 . 18 8 . 9 . . . . 12 . 11 1 . . . 13 . 10 4 . 2 Fabricators 24 | . . . . . . . 3 . 3 2 . 3 . . . . 2 . 2 . . . . 3 . 4 1 . 1 Repair Stations 17 | . . . . . . . 1 . 2 3 . 1 . . . . 1 . 3 . . . . 2 . 3 . . 1 Recycling Units 14 | . . . . . . . 1 . 1 1 . 1 . . . . 2 . 1 . . . . 3 . 3 1 . . Scanalyzers 4 | . . . . . . 1 . . . 1 . . . . . . 1 . . . . . . 1 . . . . . Garrison Access 17 | . . . . . . . 2 . 3 2 . 2 . . . . 3 . 1 . . . . 2 . 2 . . . Total Hacks 810 | . 10 17 . 1 . 36 82 . 92 65 . 64 . . 23 . 67 . 81 2 . 19 . 122 . 100 19 . 10 Successful 653 | . 5 11 . 1 . 18 66 . 69 49 . 55 . . 23 . 50 . 78 2 . 19 . 102 . 83 17 . 5 Failed 154 | . 4 6 . . . 18 15 . 23 15 . 9 . . . . 17 . 3 . . . . 20 . 17 2 . 5 Catastrophic 12 | . . . . . . 4 . . 2 . . . . . . . 1 . . . . . . 2 . 2 . . 1 Database Lockouts 3 | . 1 . . . . . 1 . . 1 . . . . . . . . . . . . . . . . . . . Manual 491 | . 8 12 . 1 . 26 51 . 54 42 . 45 . . . . 43 . 51 . . . . 73 . 66 15 1 3 Terminals 557 | . 10 17 . . . 34 63 . 65 41 . 49 . . . . 47 . 58 1 . . . 85 . 69 15 . 3 Fabricators 81 | . . . . . . . 9 . 14 5 . 8 . . . . 6 . 10 . . . . 12 . 13 1 . 3 Repair Stations 44 | . . . . . . . 3 . 6 7 . 1 . . . . 2 . 8 . . . . 7 . 6 . . 4 Recycling Units 50 | . . . . . . . 4 . 4 5 . 3 . . . . 5 . 3 . . . . 13 . 10 3 . . Scanalyzers 12 | . . . . . . 2 . . . 5 . . . . . . 3 . . . . . . 2 . . . . . Garrison Access 22 | . . . . . . . 3 . 3 2 . 3 . . . . 4 . 2 . . . . 3 . 2 . . . Terminal Hacks 333 | . 2 5 . 1 . 10 38 . 28 21 . 28 . . 23 . 18 . 34 2 . 19 . 54 . 42 8 . . Record 22 | . . . . 1 . . . . . . . . . . 11 . . . . 1 . 7 . 2 . . . . . Part Schematic 35 | . 1 . . . . . 2 . 4 3 . 2 . . 2 . 3 . 1 . . 4 . 11 . 2 . . . Robot Schematic 8 | . . . . . . . . . . . . 1 . . 7 . . . . . . . . . . . . . . Robot Analysis 9 | . . . . . . . . . . 1 . . . . . . 2 . . . . 4 . 1 . 1 . . . Prototype ID Bank 9 | . . . . . . 1 . . . . . . . . 3 . . . . . . 4 . 1 . . . . . Open Door 1 | . . . . . . . . . . . . . . . . . . . . 1 . . . . . . . . . Level Access Points 4 | . . . . . . . . . 1 . . 1 . . . . . . 1 . . . . 1 . . . . . Branch Access Points 6 | . . . . . . 1 . . 1 . . 1 . . . . 1 . 1 . . . . . . 1 . . . Emergency Access Points 6 | . . . . . . . 1 . . . . . . . . . 1 . 1 . . . . 2 . . 1 . . Terminal Index 11 | . 1 . . . . 1 1 . 1 1 . 1 . . . . 1 . 1 . . . . 1 . 1 1 . . Fabricator Index 9 | . . . . . . . 1 . 1 1 . 1 . . . . 1 . 1 . . . . 1 . 1 1 . . Repair Station Index 7 | . . . . . . . 1 . . 1 . 1 . . . . 1 . 1 . . . . 1 . 1 . . . Recycling Unit Index 2 | . . . . . . . . . . . . 1 . . . . . . . . . . . . . 1 . . . Scanalyzer Index 5 | . . . . . . . . . . 1 . . . . . . 1 . 2 . . . . 1 . . . . . Garrison Index 6 | . . . . . . . . . 1 1 . 1 . . . . . . 1 . . . . 1 . 1 . . . Alert Level 15 | . . . . . . 1 2 . 1 . . 1 . . . . . . 1 . . . . 4 . 5 . . . Unreport Threat 26 | . . . . . . 1 3 . . 3 . 1 . . . . . . 3 . . . . 7 . 7 1 . . Locate Traps 40 | . . 3 . . . 2 6 . 5 3 . 4 . . . . 2 . 6 . . . . 3 . 5 1 . . Reprogram Traps 1 | . . . . . . . . . . . . . . . . . . . . . . . . 1 . . . . . Maintenance Status 1 | . . . . . . . 1 . . . . . . . . . . . . . . . . . . . . . . Security Status 4 | . . . . . . . 1 . . . . 1 . . . . . . . . . . . 1 . 1 . . . Surveillance Status 2 | . . . . . . . 1 . . . . . . . . . . . . . . . . 1 . . . . . Patrol Status 6 | . . . . . . . 3 . . . . 1 . . . . . . . . . . . 1 . 1 . . . Transport Status 1 | . . . . . . 1 . . . . . . . . . . . . . . . . . . . . . . . Investigation Status 1 | . . . . . . . 1 . . . . . . . . . . . . . . . . . . . . . . Extermination Status 1 | . . . . . . . . . . . . . . . . . . . 1 . . . . . . . . . . Reinforcement Status 1 | . . . . . . . 1 . . . . . . . . . . . . . . . . . . . . . . Assault Status 1 | . . . . . . . 1 . . . . . . . . . . . . . . . . . . . . . . Intercept Status 1 | . . . . . . . 1 . . . . . . . . . . . . . . . . . . . . . . Recall Investigation 3 | . . . . . . . 1 . . . . . . . . . . . . . . . . . . 2 . . . Recall Extermination 7 | . . . . . . . 1 . . . . 1 . . . . . . . . . . . 3 . 2 . . . Recall Reinforcements 2 | . . . . . . . . . . . . . . . . . . . 1 . . . . 1 . . . . . Recall Assault 2 | . . . . . . . . . . 1 . . . . . . . . . . . . . . . 1 . . . Hauler Manifests 9 | . . 1 . . . 1 1 . 1 1 . 1 . . . . . . 1 . . . . 1 . 1 . . . Registered Components 8 | . . . . . . 1 1 . 1 1 . . . . . . 1 . 1 . . . . 1 . 1 . . . Registered Prototypes 8 | . . . . . . . 1 . 1 1 . 1 . . . . 1 . 1 . . . . 1 . 1 . . . Zone Layout 53 | . . 1 . . . . 6 . 10 2 . 7 . . . . 3 . 9 . . . . 6 . 6 3 . . Fabricator Hacks 46 | . . . . . . . 4 . 9 2 . 4 . . . . 5 . 6 . . . . 7 . 7 . . 2 Network Status 2 | . . . . . . . . . . . . . . . . . . . 1 . . . . . . 1 . . . Load Schematic 18 | . . . . . . . 2 . 3 . . 2 . . . . 2 . 2 . . . . 3 . 3 . . 1 Build 26 | . . . . . . . 2 . 6 2 . 2 . . . . 3 . 3 . . . . 4 . 3 . . 1 Repair Station Hacks 39 | . . . . . . . 2 . 6 6 . . . . . . 2 . 8 . . . . 6 . 6 . . 3 Scan Component 20 | . . . . . . . 1 . 3 3 . . . . . . 1 . 4 . . . . 3 . 3 . . 2 Repair 19 | . . . . . . . 1 . 3 3 . . . . . . 1 . 4 . . . . 3 . 3 . . 1 Recycling Unit Hacks 22 | . . . . . . . 1 . 1 2 . 1 . . . . 2 . 1 . . . . 8 . 5 1 . . Recycle Component 1 | . . . . . . . . . . . . . . . . . . . . . . . . 1 . . . . . Process 1 | . . . . . . . . . . . . . . . . . . . . . . . . 1 . . . . . Report Inventory 6 | . . . . . . . . . . . . . . . . . 1 . 1 . . . . 2 . 1 1 . . Retrieve Matter 1 | . . . . . . . . . . . . . . . . . . . . . . . . 1 . . . . . Retrieve Components 13 | . . . . . . . 1 . 1 2 . 1 . . . . 1 . . . . . . 3 . 4 . . . Scanalyzer 12 | . . . . . . 2 . . . 5 . . . . . . 3 . . . . . . 2 . . . . . Insert Component 6 | . . . . . . 1 . . . 2 . . . . . . 1 . . . . . . 2 . . . . . Analyze 6 | . . . . . . 1 . . . 3 . . . . . . 2 . . . . . . . . . . . . Garrison Access Hacks 16 | . . . . . . . 2 . 3 2 . 2 . . . . 3 . 1 . . . . 2 . 1 . . . Seal Access 16 | . . . . . . . 2 . 3 2 . 2 . . . . 3 . 1 . . . . 2 . 1 . . . Unauthorized Hacks 185 | . 3 6 . . . 6 19 . 22 11 . 20 . . . . 17 . 28 . . . . 23 . 22 8 . . Terminals 125 | . 3 6 . . . 6 13 . 16 5 . 13 . . . . 13 . 21 . . . . 14 . 10 5 . . Track 39 | . . 2 . . . 1 3 . 4 1 . 5 . . . . 2 . 6 . . . . 5 . 6 4 . . Assimilate 11 | . . 1 . . . . 1 . 1 . . 2 . . . . 2 . 3 . . . . 1 . . . . . Botnet 61 | . 2 2 . . . 4 7 . 11 4 . 5 . . . . 7 . 10 . . . . 6 . 3 . . . Disrupt 4 | . . . . . . . 1 . . . . . . . . . 1 . 1 . . . . 1 . . . . . Operators 10 | . 1 1 . . . 1 1 . . . . 1 . . . . 1 . 1 . . . . 1 . 1 1 . . Fabricators 32 | . . . . . . . 4 . 5 3 . 4 . . . . 1 . 4 . . . . 4 . 6 1 . . Report 5 | . . . . . . . 1 . 1 . . 1 . . . . . . 1 . . . . . . . 1 . . Prioritize 10 | . . . . . . . 2 . 2 1 . 1 . . . . . . 1 . . . . 1 . 2 . . . Siphon 14 | . . . . . . . 1 . 2 1 . 2 . . . . 1 . 1 . . . . 3 . 3 . . . Haulers 3 | . . . . . . . . . . 1 . . . . . . . . 1 . . . . . . 1 . . . Repair Stations 1 | . . . . . . . . . . . . 1 . . . . . . . . . . . . . . . . . Mechanics 1 | . . . . . . . . . . . . 1 . . . . . . . . . . . . . . . . . Recycling Units 24 | . . . . . . . 2 . 1 3 . 2 . . . . 3 . 2 . . . . 4 . 5 2 . . Reject 12 | . . . . . . . 1 . . 1 . 1 . . . . 1 . 1 . . . . 3 . 3 1 . . Recyclers 11 | . . . . . . . 1 . 1 1 . 1 . . . . 2 . 1 . . . . 1 . 2 1 . . Mask 1 | . . . . . . . . . . 1 . . . . . . . . . . . . . . . . . . . Scanalyzers . | . . . . . . . . . . . . . . . . . . . . . . . . . . . . . . Garrison Access 3 | . . . . . . . . . . . . . . . . . . . 1 . . . . 1 . 1 . . . Reprogram 1 | . . . . . . . . . . . . . . . . . . . . . . . . . . 1 . . . Watchers 2 | . . . . . . . . . . . . . . . . . . . 1 . . . . 1 . . . . . Data Cores Recovered 4 | . . 1 . . . . . . 1 . . . . . . . . . . . . . . . . 2 . . . Used 3 | . . . . . . . . . 1 . . . . . . . . . . . . . . . . 2 . . . Hacking Detections 155 | . 4 4 . . . 9 15 . 22 14 . 11 . . . . 19 . 12 . . . . 20 . 17 4 . 4 Full Trace Events 5 | . . . . . . . 1 . 1 . . . . . . . . . . . . . . . . 2 . . 1 Feedback Events . | . . . . . . . . . . . . . . . . . . . . . . . . . . . . . . Feedback Blocked . | . . . . . . . . . . . . . . . . . . . . . . . . . . . . . . Robot Schematics Acquired 8 | . . . . . . . . . . . . 1 . . 7 . . . . . . . . . . . . . . Robots Built . | . . . . . . . . . . . . . . . . . . . . . . . . . . . . . . Matter . | . . . . . . . . . . . . . . . . . . . . . . . . . . . . . . Time . | . . . . . . . . . . . . . . . . . . . . . . . . . . . . . . Total Robot Build Rating . | . . . . . . . . . . . . . . . . . . . . . . . . . . . . . . Part Schematics Acquired 38 | . 1 . . . . 1 2 . 4 5 . 2 . . 2 . 3 . 1 . . 4 . 11 . 2 . . . Parts Built 27 | . . . . . . . 3 . 6 2 . 2 . . . . 3 . 3 . . . . 4 . 3 . . 1 Matter 5312 | . . . . . . . 305 . 852 384 . 426 . . . . 530 . 664 . . . . 1077 . 789 . . 285 Time 2193 | . . . . . . . 44 . 282 96 . 228 . . . . 265 . 236 . . . . 405 . 561 . . 76 Total Part Build Rating 160 | . . . . . . . 15 . 30 16 . 10 . . . . 18 . 16 . . . . 29 . 21 . . 5 Parts Repaired 19 | . . . . . . . 1 . 3 3 . . . . . . 1 . 4 . . . . 3 . 3 . . 1 Time 775 | . . . . . . . 19 . 66 110 . . . . . . 40 . 220 . . . . 124 . 162 . . 34 Parts Recycled 1 | . . . . . . . . . . . . . . . . . . . . . . . . 1 . . . . . Recycled Matter 50 | . . . . . . . . . . . . . . . . . . . . . . . . 50 . . . . . Retrieved Matter 50 | . . . . . . . . . . . . . . . . . . . . . . . . 50 . . . . . Retrieved Components 48 | . . . . . . . 5 . 1 9 . 1 . . . . 2 . . . . . . 10 . 20 . . . Parts Scanalyzed 4 | . . . . . . 1 . . . 2 . . . . . . 1 . . . . . . . . . . . . Part Schematics Acquired 3 | . . . . . . 1 . . . 2 . . . . . . . . . . . . . . . . . . . Parts Damaged . | . . . . . . . . . . . . . . . . . . . . . . . . . . . . . . Bothacking | -11 -10 -9 -9 -9 -8 -8 -7 -7 -7 -6 -6 -6 -6 -6 -6 -5 -5 -5 -5 -5 -5 -5 -4 -4 -4 -4 -4 -4 -3 ------------ Run | Scr Mat Mat Min Exi Min Mat Fac Was Fac Fac Was Fac Low Low Dat Pro Fac Was Fac Upp Upp Zhi Pro Fac Was Fac Arm Lab Res Used RIF Installer . | . . . . . . . . . . . . . . . . . . . . . . . . . . . . . . Robots Hacked 3 | . . . . . . . 1 . . 1 . . . . . . . . . . . . . 1 . . . . . Non-combat 3 | . . . . . . . 1 . . 1 . . . . . . . . . . . . . 1 . . . . . Combat . | . . . . . . . . . . . . . . . . . . . . . . . . . . . . . . Robot Hacks Applied 4 | . . . . . . . 1 . . 2 . . . . . . . . . . . . . 1 . . . . . find_chute 4 | . . . . . . . 1 . . 2 . . . . . . . . . . . . . 1 . . . . . Relay Couplers Released 2 | . . . . . . 2 . . . . . . . . . . . . . . . . . . . . . . . Machine Destruction 2 | . . . . . . 2 . . . . . . . . . . . . . . . . . . . . . . . Robots Rewired 2 | . . . . . . . . . . . . . . . . . . . . . . . . . . . 2 . . Allies Hacked 1 | . . . . . . . . . . . . . . . . . 1 . . . . . . . . . . . . Hacks Repelled 2 | . . . . . . . . . 1 . . . . . . . . . . . . . . . . 1 . . . Allies | -11 -10 -9 -9 -9 -8 -8 -7 -7 -7 -6 -6 -6 -6 -6 -6 -5 -5 -5 -5 -5 -5 -5 -4 -4 -4 -4 -4 -4 -3 -------- Run | Scr Mat Mat Min Exi Min Mat Fac Was Fac Fac Was Fac Low Low Dat Pro Fac Was Fac Upp Upp Zhi Pro Fac Was Fac Arm Lab Res Total Allies 33 | . . . . . . . 1 . 3 . . 2 . . . . 2 . 2 . . . . 1 20 . 2 . . Largest Group 20 | . . . . . . . 1 . 3 . . 1 . . . . 2 . 2 . . . . 1 20 6 2 . . Highest-Rated Group 780 | . . . . . . . 26 . 93 . . 26 . . . . 36 . 36 . . . . 26 780 254 96 . . Highest-Rated Ally 50 | . . . . . . . 26 . 31 . . 26 . . . . 26 . 26 . . . . 26 50 50 48 . . Total Orders 4 | . . . . . . . . . . . . . . . . . 3 . 1 . . . . . . . . . . STAY 1 | . . . . . . . . . . . . . . . . . . . 1 . . . . . . . . . . EXPLORE 3 | . . . . . . . . . . . . . . . . . 3 . . . . . . . . . . . . Ally Attacks 99 | . . . . . . . . . 20 . . . . . . . . . . . . . . . 52 19 8 . . Total Damage 3883 | . . . . . . . . . 296 . . . . . . . . . . . . . . . 2675 661 251 . . Kills 17 | . . . . . . . . . 4 . . . . . . . . . . . . . . . 7 5 1 . . Allies Corrupted 1 | . . . . . . . . . . . . . . . . . 1 . . . . . . . . . . . . Allies Melted . | . . . . . . . . . . . . . . . . . . . . . . . . . . . . . . Intel | -11 -10 -9 -9 -9 -8 -8 -7 -7 -7 -6 -6 -6 -6 -6 -6 -5 -5 -5 -5 -5 -5 -5 -4 -4 -4 -4 -4 -4 -3 ------- Run | Scr Mat Mat Min Exi Min Mat Fac Was Fac Fac Was Fac Low Low Dat Pro Fac Was Fac Upp Upp Zhi Pro Fac Was Fac Arm Lab Res Robot Analysis Total 9 | . . . . . . . . . . 1 . . . . . . 2 . . . . 4 . 1 . 1 . . . Derelict Logs Recovered 7 | . . . . . . . . . . . . . 1 . . 2 . . . 2 . . 2 . . . . . . Drone Launches 4 | . . . . . . . . . . . . . . . . . 4 . . . . . . . . . . . . Drone Recoveries 3 | . . . . . . . . . . . . . . . . . 3 . . . . . . . . . . . . Exploration | -11 -10 -9 -9 -9 -8 -8 -7 -7 -7 -6 -6 -6 -6 -6 -6 -5 -5 -5 -5 -5 -5 -5 -4 -4 -4 -4 -4 -4 -3 ------------- Run | Scr Mat Mat Min Exi Min Mat Fac Was Fac Fac Was Fac Low Low Dat Pro Fac Was Fac Upp Upp Zhi Pro Fac Was Fac Arm Lab Res Turns Passed 21775 | 47 1156 1590 671 452 494 2178 995 24 1167 1381 22 1399 138 436 48 593 1154 41 875 344 76 99 113 2304 157 2906 284 85 546 Spaces Moved 29338 | 36 591 775 433 302 282 929 2111 75 2397 2793 64 2016 377 522 119 457 2315 118 1656 430 243 229 329 4019 352 4112 506 22 728 Core 62 | 1 . . . . . . . . . . . . . . . . . . . . . . . . . . . . 61 Treads 268 | . 213 42 . . . 13 . . . . . . . . . . . . . . . . . . . . . . . Legs . | . . . . . . . . . . . . . . . . . . . . . . . . . . . . . . Wheels 3079 | 35 378 733 433 302 282 916 . . . . . . . . . . . . . . . . . . . . . . . Hover . | . . . . . . . . . . . . . . . . . . . . . . . . . . . . . . Flight 25929 | . . . . . . . 2111 75 2397 2793 64 2016 377 522 119 457 2315 118 1656 430 243 229 329 4019 352 4112 506 22 667 Fastest Speed 28 | 50 100 140 150 150 150 150 30 32 29 29 34 34 34 34 34 34 30 30 30 30 30 30 30 30 32 32 32 32 28 Average Speed 45 | 98 148 150 150 150 150 167 31 32 30 32 34 34 34 34 34 34 30 30 30 30 30 30 30 31 32 32 32 32 33 Slowest Speed 220 | 100 200 220 150 150 150 200 32 32 109 34 34 34 34 106 34 34 30 30 30 30 30 30 30 32 32 108 32 32 50 Overloaded Moves . | . . . . . . . . . . . . . . . . . . . . . . . . . . . . . . Propulsion Burnouts . | . . . . . . . . . . . . . . . . . . . . . . . . . . . . . . Robots Hopped 113 | . . . . . . . 13 . 9 11 . 8 . 4 2 . 17 . 6 2 . . . 18 1 16 4 1 1 Cave-ins Triggered 1 | . . . . . . . . . . 1 . . . . . . . . . . . . . . . . . . . Teleports 1 | . . . . . . . . . . . . . . . . . . . . . . . . . . . 1 . . Exploration Rate (%) 56 | 4 73 79 68 61 86 70 57 80 61 51 64 29 64 50 77 48 50 70 43 65 51 62 50 46 92 63 35 35 19 Regions Visited 29 Branch Regions 13 Pre-discovered Areas 6 | . . . . 1 . . . . . . . . . . 1 . . . . . . 3 1 . . . . . . Known Exits Taken 14 | . . . . . . . . . 1 . . 1 1 1 1 1 . . 1 1 1 1 1 . . 1 1 1 . Unknown Exits Taken 7 | 1 1 1 1 1 1 1 . . . . . . . . . . . . . . . . . . . . . . . Scrap Searched 11 | . . . 1 . 2 . . . . . . . . 1 . 1 . . . 3 1 . 2 . . . . . . Spaces Dug 548 | . . . . . . . 44 . 59 56 . 76 1 . . 25 33 . 49 9 . . 1 70 . 102 6 . 17 Terrain Destroyed 718 | . . . . . . 3 44 . 59 61 . 78 1 3 . 25 35 . 50 11 . . 1 217 . 106 6 . 18 Melee 499 | . . . . . . . 42 . 59 56 . 74 1 . . . 32 . 48 1 . . 1 63 . 99 6 . 17 Projectile 55 | . . . . . . . 2 . . 5 . 4 . 3 . . 3 . 2 10 . . . 18 . 7 . . 1 AOE 164 | . . . . . . 3 . . . . . . . . . 25 . . . . . . . 136 . . . . . Terrain Rammed . | . . . . . . . . . . . . . . . . . . . . . . . . . . . . . . Walls Destroyed . | . . . . . . . . . . . . . . . . . . . . . . . . . . . . . . Machines Disabled . | . . . . . . . . . . . . . . . . . . . . . . . . . . . . . . Actions | -11 -10 -9 -9 -9 -8 -8 -7 -7 -7 -6 -6 -6 -6 -6 -6 -5 -5 -5 -5 -5 -5 -5 -4 -4 -4 -4 -4 -4 -3 --------- Run | Scr Mat Mat Min Exi Min Mat Fac Was Fac Fac Was Fac Low Low Dat Pro Fac Was Fac Upp Upp Zhi Pro Fac Was Fac Arm Lab Res Total 35346 | 44 742 1042 443 301 309 1228 2334 74 2708 3083 63 2535 384 754 123 892 2674 122 1895 627 244 259 335 4765 394 5304 590 91 987 Wait 4078 | . 42 103 3 . 4 46 115 . 214 158 . 413 7 209 4 429 271 . 148 180 . 12 . 498 42 889 30 61 200 Move 29093 | 35 590 774 432 301 281 928 2087 74 2378 2772 63 1999 376 513 114 456 2282 117 1645 425 242 228 328 3983 349 4079 497 19 726 Hop 106 | . . . . . . . 11 . 9 9 . 8 . 4 2 . 16 . 4 2 . . . 18 1 16 4 1 1 Pick Up 176 | 3 22 34 1 . 1 22 5 . 7 13 . 3 . . . . 9 1 7 . . 2 1 19 . 21 4 . 1 Fast Attach 105 | 6 4 3 . . . 12 4 . 4 11 . 5 . 4 . 1 7 2 7 2 . 7 1 8 1 7 4 . 5 Attach 122 | . 8 9 . . 1 14 15 . 5 7 . . . 5 1 2 9 1 4 1 . 1 . 8 . 17 2 3 9 Detach 37 | . 1 1 . . . 2 2 . 1 2 . 1 . 2 1 2 6 1 4 1 . 1 . 1 . 5 . . 3 Swap 149 | . 3 6 . . . 10 2 . 6 3 . 9 . 3 . . 8 . 2 3 2 . . 33 . 53 4 . 2 Drop 191 | . 4 24 1 . . 28 23 . 8 14 . 8 . 2 . . 8 . 7 2 . 8 1 19 1 17 6 2 8 Fire 477 | . 68 88 6 . 22 166 4 . 6 9 . 4 . 5 1 2 13 . 2 10 . . . 49 . 19 . . 3 Melee 761 | . . . . . . . 66 . 70 84 . 85 1 7 . . 45 . 65 1 . . 4 99 . 181 21 5 27 Ram 2 | . . . . . . . . . . . . . . . . . . . . . . . . . . . . . 2 Kick . | . . . . . . . . . . . . . . . . . . . . . . . . . . . . . . Crush . | . . . . . . . . . . . . . . . . . . . . . . . . . . . . . . Escape Stasis 38 | . . . . . . . . . . 1 . . . . . . . . . . . . . 30 . . 7 . . Rewire 11 | . . . . . . . . . . . . . . . . . . . . . . . . . . . 11 . . Trap . | . . . . . . . . . . . . . . . . . . . . . . . . . . . . . . Miscellaneous . | . . . . . . . . . . . . . . . . . . . . . . . . . . . . . . Route ------- -11/Scrapyard -10/Materials (discovered 3 exits: *Mat x2 / [*Min]) -9/Materials (discovered 4 exits: *Mat x3 / [*Min]) -9/Mines (discovered 4 exits: *Mat x2 / *Exi / [*Zio]) -9/Exiles -8/Mines (discovered 2 exits: *Mat x2) -8/Materials (discovered 5 exits: *Fac x3 / *Sto x2) -7/Factory -7/Waste -7/Factory (discovered 6 exits: *Fac x4 / Low x2) -6/Factory (discovered 3 exits: *Fac / *Low / *Ext) -6/Waste -6/Factory (discovered 8 exits: Fac x4 / *Low x2 / *Ext x2) -6/Lower Caves -6/Lower Caves -6/Data Miner -5/Proximity Caves -5/Factory (discovered 4 exits: *Fac x2 / *Upp x2) -5/Waste -5/Factory (discovered 6 exits: *Fac x4 / *Upp x2) -5/Upper Caves -5/Upper Caves (discovered 2 exits: *Fac / *Zhi) -5/Zhirov -4/Proximity Caves -4/Factory (discovered 6 exits: *Res x4 / Upp / Arm) -4/Waste -4/Factory (discovered 6 exits: *Res x3 / *Upp x2 / *Arm) -4/Armory (discovered 2 exits: Res / *Lab) -4/Lab -3/Research (discovered 1 exit: *Tes) History --------- Turn | Location | Event 28 | -11/Scrapyard | Discovered new exit (range 15) 48 | -11/Scrapyard | Entered Materials 230 | -10/Materials | Discovered new exit (range 13) 302 | -10/Materials | Build established: Mutant 305 | -10/Materials | Lost 4 parts (1p2n1w) 394 | -10/Materials | Discovered new exit (range 15) 573 | -10/Materials | Central database locked down 581 | -10/Materials | Discovered new exit (range 16) 1204 | -10/Materials | Entered another Materials area 1204 | -9/Materials | Evolved 2 slots: Propulsion x1, Utility x1 1441 | -9/Materials | Discovered new exit (range 17) 1478 | -9/Materials | Build established: Hauler-Mutant 1764 | -9/Materials | Discovered new exit (range 15) 2315 | -9/Materials | Discovered new exit (range 16) 2723 | -9/Materials | Discovered new exit (range 16) 2794 | -9/Materials | Entered Mines 2890 | -9/Mines | Received a Rocket Launcher from a helpful Derelict 2923 | -9/Mines | Assembled infested the area 2963 | -9/Mines | A Derelict revealed a hidden shortcut to a safe place 3022 | -9/Mines | Discovered new exit (range 10) 3412 | -9/Mines | Discovered new exit (range 8) 3459 | -9/Mines | Discovered new exit (range 5) 3465 | -9/Mines | Entered Exiles 3506 | -9/Exiles | Met 8R-AWN 3527 | -9/Exiles | Met EX-HEX 3597 | -9/Exiles | Met EX-DEC 3605 | -9/Exiles | Learned location of Zion (-7) 3635 | -9/Exiles | Met EX-BIN 3903 | -9/Exiles | Discovered new exit (range 10) 3917 | -9/Exiles | Entered Mines 3949 | -8/Mines | Core integrity fell below 50% 4310 | -8/Mines | Discovered new exit (range 10) 4384 | -8/Mines | Discovered new exit (range 5) 4411 | -8/Mines | Entered Materials 4411 | -8/Materials | Evolved 2 slots: Utility x2 4615 | -8/Materials | Discovered new exit (range 15) 5191 | -8/Materials | Discovered new exit (range 16) 5250 | -8/Materials | Garrison activated, responded to threat 5524 | -8/Materials | Lost 6 parts (2n2u2w) 5589 | -8/Materials | Discovered new exit (range 8) 5801 | -8/Materials | Discovered new exit (range 13) 6011 | -8/Materials | First assault squad dispatched 6101 | -8/Materials | Core integrity fell below 50% 6190 | -8/Materials | Discovered new exit (range 12) 6209 | -8/Materials | Identified exit to Storage 6589 | -8/Materials | Entered Factory 6589 | -7/Factory | Evolved 2 slots: Utility x2 6702 | -7/Factory | Repaired Katana 6852 | -7/Factory | Found Prototype Launcher 6852 | -7/Factory | Identified Rocket Array 6894 | -7/Factory | Build established: Hacker-Sprinter 7323 | -7/Factory | Central database locked down 7383 | -7/Factory | Fabricated Mic. Fission Core (x2) 7508 | -7/Factory | Fabricated Hacking Suite? 7584 | -7/Factory | Manually triggered Chute Trap 7584 | -7/Factory | Sucked down chute 7584 | -7/Factory | Entered Waste 7587 | -7/Waste | Spotted C-40 Crusher 7591 | -7/Waste | Spotted C-40 Crusher 7591 | -7/Waste | Spotted C-40 Crusher 7591 | -7/Waste | Spotted C-40 Crusher 7594 | -7/Waste | Spotted C-40 Crusher 7599 | -7/Waste | EMP discharged 7600 | -7/Waste | Spotted C-40 Crusher 7603 | -7/Waste | Discovered new exit (range 16) 7608 | -7/Waste | Identified exit to Factory 7608 | -7/Waste | Entered Factory 7670 | -7/Factory | Identified exit to Lower Caves 7774 | -7/Factory | Repaired Cesium-ion Thruster 7826 | -7/Factory | Allied Derelicts emerged from ambush trap array 8050 | -7/Factory | Identified exit to Factory 8293 | -7/Factory | Repaired Adv. Sensor Array 8322 | -7/Factory | Repaired Mic. Fission Core? 8557 | -7/Factory | Fabricated Imp. Hacking Suite (x1) 8588 | -7/Factory | Fabricated Imp. Hacking Suite? 8617 | -7/Factory | Fabricated Imp. Hacking Suite (x1) 8665 | -7/Factory | Fabricated Imp. Hacking Suite (x1) 8714 | -7/Factory | Fabricated Imp. Hacking Suite (x1) 8763 | -7/Factory | Fabricated Imp. System Shield (x1) 8775 | -7/Factory | Entered another Factory area 8775 | -6/Factory | Evolved 2 slots: Utility x2 8806 | -6/Factory | Repaired Katana 8991 | -6/Factory | Discovered new exit (range 17) 9077 | -6/Factory | Fabricated Impulse Thruster Array (x1) 9081 | -6/Factory | Local fabrication network quarantined 9110 | -6/Factory | Fabricated Impulse Thruster Array (x1) 9312 | -6/Factory | Central database locked down 9388 | -6/Factory | Build established: Wizard-Mutant 9475 | -6/Factory | First assault squad dispatched 9496 | -6/Factory | Repaired Mic. Fission Core 9534 | -6/Factory | Crushed by falling debris 9579 | -6/Factory | Discovered new exit (range 14) 9597 | -6/Factory | Repaired Imp. Cesium-ion Thruster? 9685 | -6/Factory | Identified exit to Lower Caves 10154 | -6/Factory | Discovered new exit (range 7) 10156 | -6/Factory | Sucked down chute 10156 | -6/Factory | Entered Waste 10156 | -6/Waste | The area was eerily silent 10170 | -6/Waste | A Compactor rumbled back to life 10170 | -6/Waste | Spotted C-40 Crusher 10172 | -6/Waste | Discovered new exit (range 16) 10177 | -6/Waste | Identified exit to Factory 10178 | -6/Waste | Entered Factory 10253 | -6/Factory | Identified exit to Extension 10324 | -6/Factory | Identified exit to Factory 10556 | -6/Factory | Found Prototype Launcher 10556 | -6/Factory | Identified Scatter Rocket Array 11209 | -6/Factory | Fabricated Exp. Sensor Array (x1) 11277 | -6/Factory | Local fabrication network quarantined 11336 | -6/Factory | Fabricated Exp. Propulsion Shielding (x1) 11577 | -6/Factory | Entered Lower Caves 11601 | -6/Lower Caves | Learned Factory stockpile data 11712 | -6/Lower Caves | Discovered new exit (range 11) 11715 | -6/Lower Caves | Identified exit to Lower Caves 11715 | -6/Lower Caves | Entered another Lower Caves area 11800 | -6/Lower Caves | Lost 6 parts (4u2w) 12149 | -6/Lower Caves | Discovered new exit (range 4) 12151 | -6/Lower Caves | Identified exit to Data Miner 12151 | -6/Lower Caves | Entered Data Miner 12151 | -6/Data Miner | Discovered new exit (range 6) 12155 | -6/Data Miner | Identified exit to Proximity Caves 12160 | -6/Data Miner | Met Data Miner 12170 | -6/Data Miner | Learned location of Section 7 (-2) 12170 | -6/Data Miner | Acquired the access code to Warlord's prototype stash 12175 | -6/Data Miner | Build established: Machinist-Scout 12176 | -6/Data Miner | Received God Mode back door access code from Data Miner 12198 | -6/Data Miner | Data Conduit disabled 12199 | -6/Data Miner | Entered Proximity Caves 12349 | -5/Proximity Caves | Learned Factory garrison access intel 12725 | -5/Proximity Caves | Received a Behemoth hack from an annoying Tinkerer 12792 | -5/Proximity Caves | Entered Factory 12792 | -5/Factory | Evolved 2 slots: Propulsion x1, Utility x1 12794 | -5/Factory | Loaded intel: 4 garrison access locations 12806 | -5/Factory | Discovered new exit (range 16) 12819 | -5/Factory | Identified exit to Upper Caves 13104 | -5/Factory | Fabricated Adv. Hacking Suite (x1) 13212 | -5/Factory | Fabricated Adv. Hacking Suite? 13534 | -5/Factory | Build established: Hacker-Sprinter 13634 | -5/Factory | Discovered new exit (range 12) 13648 | -5/Factory | Identified exit to Factory 13665 | -5/Factory | Fabricated Adv. System Shield (x1) 13678 | -5/Factory | Repaired Exp. Sensor Array? 13884 | -5/Factory | Discovered exit to Factory (range 8) 13946 | -5/Factory | Sucked down chute 13946 | -5/Factory | Entered Waste 13955 | -5/Waste | Spotted C-40 Crusher 13956 | -5/Waste | Spotted C-40 Crusher 13956 | -5/Waste | Spotted C-40 Crusher 13958 | -5/Waste | Found Enh. Force Lance 13960 | -5/Waste | Spotted C-40 Crusher 13961 | -5/Waste | Crushed by Compactor (0 parts destroyed, 2 dropped) 13975 | -5/Waste | Spotted C-40 Crusher 13976 | -5/Waste | Spotted C-40 Crusher 13982 | -5/Waste | Discovered new exit (range 16) 13987 | -5/Waste | Identified exit to Factory 13987 | -5/Waste | Entered Factory 14015 | -5/Factory | Spotted B-75 Beast 14076 | -5/Factory | Repaired Enh. Force Lance 14088 | -5/Factory | Fabricated Exp. Sensor Array (x1) 14128 | -5/Factory | Build established: Wizard-Sprinter 14135 | -5/Factory | Repaired Mic. Fission Core? 14168 | -5/Factory | Fabricated Exp. Sensor Array (x1) 14193 | -5/Factory | Repaired Cld. Particle Cannon? 14254 | -5/Factory | Fabricated Mni. Smartbomb Launcher (x1) 14297 | -5/Factory | Repaired Exp. Propulsion Shielding 14396 | -5/Factory | Local fabrication network quarantined 14862 | -5/Factory | Entered Upper Caves 14901 | -5/Upper Caves | Learned location of 1 exit from Factory 14957 | -5/Upper Caves | Identified exit to Upper Caves 15206 | -5/Upper Caves | Entered another Upper Caves area 15215 | -5/Upper Caves | Discovered exit to Factory (range 9) 15278 | -5/Upper Caves | Discovered new exit (range 14) 15282 | -5/Upper Caves | Identified exit to Zhirov 15282 | -5/Upper Caves | Entered Zhirov 15282 | -5/Zhirov | Discovered new exit (range 3) 15288 | -5/Zhirov | Met Zhirov 15295 | -5/Zhirov | Learned location of Quarantine (-2) 15295 | -5/Zhirov | Learned location of Testing (-3) 15295 | -5/Zhirov | Learned location of Command (-1) 15299 | -5/Zhirov | Zhirov requested help retrieving the SGEMP Prototype 15311 | -5/Zhirov | Found Alien Artifact 15311 | -5/Zhirov | Identified Integrated Dissipator 15311 | -5/Zhirov | Installed Integrated Dissipator, increased core heat dissipation (+20) 15318 | -5/Zhirov | Found Alien Artifact 15381 | -5/Zhirov | Identified exit to Proximity Caves 15381 | -5/Zhirov | Entered Proximity Caves 15423 | -4/Proximity Caves | Attracted the attention of an 0b10 checkpoint 15486 | -4/Proximity Caves | Discovered exit to Factory (range 15) 15494 | -4/Proximity Caves | Entered Factory 15494 | -4/Factory | Evolved 2 slots: Propulsion x1, Utility x1 15495 | -4/Factory | Identified exit to Armory 15496 | -4/Factory | Identified exit to Upper Caves 15539 | -4/Factory | Repaired Exp. Propulsion Shielding 16654 | -4/Factory | Repaired Exp. Propulsion Shielding? 17114 | -4/Factory | Fabricated Mni. Fusion Reactor? 17156 | -4/Factory | Fabricated Plasma Lance? 17168 | -4/Factory | Fabricated Mni. Fusion Reactor? 17171 | -4/Factory | Identified Transdimensional Reconstructor 17182 | -4/Factory | Local fabrication network quarantined 17190 | -4/Factory | Identified exit to Research 17360 | -4/Factory | Repaired Cld. Nuclear Pulse Thruster? 17362 | -4/Factory | Fabricated EM Dispersion Field? 17798 | -4/Factory | Sucked down chute 17798 | -4/Factory | Entered Waste 17799 | -4/Waste | Joined by Warlord forces that had cleared the area 17812 | -4/Waste | Found Enh. Force Lance 17817 | -4/Waste | Discovered new exit (range 16) 17833 | -4/Waste | Identified exit to Factory 17900 | -4/Waste | A Compactor rumbled back to life 17900 | -4/Waste | Spotted C-40 Crusher 17904 | -4/Waste | Allies destroyed C-40 Crusher 17910 | -4/Waste | A Compactor rumbled back to life 17910 | -4/Waste | Spotted C-40 Crusher 17955 | -4/Waste | Entered Factory 17955 | -4/Factory | Accompanied by 6 allies 18103 | -4/Factory | Repaired Mni. Fusion Reactor 18485 | -4/Factory | Discovered exit to Upper Caves (range 5) 18689 | -4/Factory | Discovered exit to Research (range 16) 18921 | -4/Factory | Discovered exit to Research (range 7) 19409 | -4/Factory | Fabricated Plasma Lance? 19453 | -4/Factory | Local fabrication network quarantined 19469 | -4/Factory | Fabricated Plasma Lance? 19503 | -4/Factory | Fabricated Exp. Hacking Suite? 19705 | -4/Factory | First assault squad dispatched 20043 | -4/Factory | Repaired Mni. Fusion Reactor 20241 | -4/Factory | Spotted B-86 Titan 20301 | -4/Factory | Discovered exit to Research (range 16) 20809 | -4/Factory | Repaired Exp. Propulsion Shielding 20861 | -4/Factory | Entered Armory 21070 | -4/Armory | Warped through subspace to slip node 21070 | -4/Armory | Discovered new exit (range 1) 21070 | -4/Armory | Identified exit to Lab 21082 | -4/Armory | Discovered exit to Research (range 14) 21132 | -4/Armory | Core integrity fell below 50% 21133 | -4/Armory | Spotted B-86 Titan 21145 | -4/Armory | Entered Lab 21145 | -4/Lab | Discovered exit to Research (range 9) 21150 | -4/Lab | Unable to decrypt terminal 21207 | -4/Lab | Unable to decrypt terminal 21207 | -4/Lab | Opened the door to a hidden lab 21207 | -4/Lab | Detected by scanners 21208 | -4/Lab | Gained access to the hidden lab's interior 21216 | -4/Lab | Confronted by A5 21230 | -4/Lab | Entered Research 21230 | -3/Research | Evolved 2 slots: Propulsion x2 21312 | -3/Research | Fabricated Exp. Sensor Array (x1) 21526 | -3/Research | Repaired Impulse Thruster Array? 21585 | -3/Research | Discovered new exit (range 9) 21588 | -3/Research | Identified exit to Testing 21654 | -3/Research | Spotted B-86 Titan 21679 | -3/Research | Intercept squad dispatched 21701 | -3/Research | Spotted Tracker 21702 | -3/Research | Spotted Tracker 21732 | -3/Research | Spotted Combat Programmer 21745 | -3/Research | Core integrity fell below 50% 21761 | -3/Research | Core integrity fell below 20% 21776 | -3/Research | Destroyed by Tracker with Linked Autogun Last Messages --------------- 21742_ Dropped Adv. Energy Well. 21743_ Cld. Field Propulsion Drive temporarily disabled. 21743_ Field Propulsion Array destroyed. 21744_ Penetrated by EMDS Slug. 21745_ Slammed into Tracker. 21749_ Penetrated by EMDS Slug. 21753_ Slammed into U-05 Engineer. 21753_ Penetrated by EMDS Slug. 21753_ U-05 Engineer destroyed. 21756_ Penetrated by EMDS Slug. 21757_ Cld. Field Propulsion Drive temporarily disabled. 21764_ System corrupted: Imp. Cesium-ion Thruster rejected. 21764_ Imp. Melee Analysis Suite destroyed. 21769_ Slug penetrates Wall. 21772_ Penetrated by Slug. 21772_ Critical hit. 21772_ Cld. Field Propulsion Drive destroyed. 21774_ Slug penetrates Terminal. 21774_ Terminal disabled. 21774_ Slug penetrates Wall. Map ----- +----------------------------------------------------+ | #??# #???# #?????????? | | # #??# ##### #?????????? | | # #??# # + #?????????? | | # #??# # # #?????????? | | # #??# + + #?????????? | | " ### #??# # ########?????????? | | # #?# #?######### ##???????????????? | | # #?# #?# # #???????????????? | | ##+##### #?# # #???????????????? | | ## # #?# + > #???????????????? | | ## # #?# # #???????????????? | | ## # #?# # #???????????????? | | ## # #?# ?### ###???????????????? | | ## # ############ #?????????????????? | | ## # # ## ##????????????????? | | ## # # # #????????????????? | | #? # # """ # #???#????????????? | | ####+### # """ # #?? #????????????? | | # + """ ## ##?? #????????????? | | / # ## #??? #???#????????? | | # == # ## #?? =#?? #????????? | | "!%* # ## #?? #?# ##???????? | | #########+############## ###;### #???????? | | #??# # ## +???????? | | #??# # ## #???????? | | #??# """ """ # ## @ #???????? | | #### """ """ # ## #???????? | | ## """ """ ###"#### #???????? | | ## ## ^ #???????? | | ## ## #???????? | | ## ## #???????? | | ## """Y""" ## s"" #???????? | | ## """"""" ## s"T" #???????? | | ## ## " " #???????? | | ## = ## #???????? | | ####/########### h +???????? | | #??# ###########h #???????? | | ####?# #???????? | | ### ########### """ #???????? | | #?????????# """" #???????? | | #???????### ! """" #???????? | | #???????#"" """ #???????? | | ###+##########"" #???????? | | # #"" #???????? | | # #T ??????? | | # #"" """ ??????? | | # ] ! #"" """" ???????? | | # #"" """" ?????????? | | ################ """ ?????????? | | #? #?????# ? #####?????????? | +----------------------------------------------------+ Best States ------------- Heat Dissipation 66 Energy Generation 33 Energy Capacity 970 Matter Stores 300 Matter Capacity 300 Sight Range 20 Robot Scan Range 30 Terrain Scan Range 18 Terrain Scan Density 10 ECM Strength 3 Jamming Range 16 Power Amplification 30 Armor Coverage 375 Resistance: KI 20 Resistance: EM 75 Power Shielding 66 Propulsion Shielding 90 Evasion (%) 75 Targeting Accuracy 8 Melee Accuracy 6 Target Analysis 6 Recoil Reduction 2 Offensive Hacking 66 Defensive Hacking 24 Item Schematics ----------------- Lrg. Storage Unit | -10/Materials | Hacked Hacking Suite | -8/Materials | Scanalyzed Mic. Fission Core | -7/Factory | Hacked Hvy. Ion Cannon | -7/Factory | Hacked Greatsword | -7/Factory | Hacked Imp. Hacking Suite | -7/Factory | Hacked Imp. System Shield | -7/Factory | Hacked Imp. System Backup Module | -7/Factory | Hacked Exp. Sensor Array | -6/Factory | Hacked Adv. Hacking Suite | -6/Factory | Hacked Exp. Propulsion Shielding | -6/Factory | Hacked Impulse Thruster Array | -6/Factory | Scanalyzed Cld. Cesium-ion Thruster | -6/Factory | Scanalyzed Adv. System Shield | -6/Factory | Hacked Field Propulsion Array | -6/Factory | Hacked Combat Drone Bay | -6/Data Miner | Free Lgt. Regenerative Plating | -6/Data Miner | Free Mni. Smartbomb Launcher | -5/Factory | Hacked Exp. Utility Shielding | -5/Factory | Hacked Exp. Cesium-ion Thruster | -5/Factory | Hacked Adv. Force Field | -5/Factory | Hacked Assault Drone Bay | -5/Zhirov | Free Exp. Heat Sink | -5/Zhirov | Free Exp. Optical Array | -5/Zhirov | Free Imp. Arc Thrower | -5/Zhirov | Free Mni. Fusion Reactor | -4/Factory | Hacked Exp. Melee Analysis Suite | -4/Factory | Hacked EM Dispersion Field | -4/Factory | Hacked Plasma Lance | -4/Factory | Hacked Adv. Actuator Array | -4/Factory | Hacked Enh. Nova Cannon | -4/Factory | Hacked Exp. Signal Interpreter | -4/Factory | Hacked Exp. Terrain Scan Processor | -4/Factory | Hacked Exp. Terrain Scanner | -4/Factory | Hacked Hvy. Neutron Cannon | -4/Factory | Hacked Arm. Heavy Treads | -4/Factory | Hacked Exp. Hacking Suite | -4/Factory | Hacked Adv. Transmission Jammer | -4/Factory | Hacked Robot Schematics ------------------ A-15 Conveyor | -6/Factory | Hacked S-27 Virus | -6/Data Miner | Free G-50 Soldier | -6/Data Miner | Free G-67 Veteran | -6/Data Miner | Free X-72 Disruptor | -6/Data Miner | Free H-66 Slayer | -6/Data Miner | Free P-70 Sage | -6/Data Miner | Free I-36 Angel | -6/Data Miner | Free Fabricated ------------ Mic. Fission Core | x2 | -7/Factory Hacking Suite | x1 | -7/Factory Imp. Hacking Suite | x1 | -7/Factory Imp. Hacking Suite | x1 | -7/Factory Imp. Hacking Suite | x1 | -7/Factory Imp. Hacking Suite | x1 | -7/Factory Imp. Hacking Suite | x1 | -7/Factory Imp. System Shield | x1 | -7/Factory Impulse Thruster Array | x1 | -6/Factory | Preloaded Impulse Thruster Array | x1 | -6/Factory | Preloaded Exp. Sensor Array | x1 | -6/Factory Exp. Propulsion Shielding | x1 | -6/Factory Adv. Hacking Suite | x1 | -5/Factory Adv. Hacking Suite | x1 | -5/Factory Adv. System Shield | x1 | -5/Factory Exp. Sensor Array | x1 | -5/Factory Exp. Sensor Array | x1 | -5/Factory Mni. Smartbomb Launcher | x1 | -5/Factory Mni. Fusion Reactor | x1 | -4/Factory Plasma Lance | x1 | -4/Factory Mni. Fusion Reactor | x1 | -4/Factory EM Dispersion Field | x1 | -4/Factory Plasma Lance | x1 | -4/Factory Plasma Lance | x1 | -4/Factory Exp. Hacking Suite | x1 | -4/Factory Exp. Sensor Array | x1 | -3/Research Alien Tech Used ----------------- Integrated Dissipator Transdimensional Reconstructor Achievements -------------- None Challenges ------------ None Game ------ Seed ShrapnelZioniteFacilitator Manual? 0 Play Time 07:48:51 Cumulative 140.1 hours Start 2021.06.18 @ 11:29:54 End 2021.06.18 @ 20:29:08 Sessions 1 Manual Loads 0 Difficulty Rogue Special Mode None Game No. 39 Rogue 22 Adventurer 17 Explorer 0 Win Type - Total 6 Types 5/0/0/1/0/0/0/0/0 Lore% 64 Gallery% 64 Achievement% 57 Wizard Run 0 Options --------- ASCII 0 Keyboard 0 Movement Arrows Keybinds 0 Fullscreen 1 Font 28/Dina Map View 72x54 Tactical HUD 1 Map Filters NONE Filters NONE Steam 1 RUN: 639389d8-49bb-426c-b9e2-e72755123906